bitfinex/quotes_SOLUSD_20250717
["timestamp","ask_amount","ask_price","bid_price","bid_amount"]
[1752765752721,7.66,173.58,173.57,35.28331556]
[1752765752928,7.69,173.59,173.57,66.18331556]
[1752765753122,7.66,173.58,173.57,56.9]
[1752765753317,7.66,173.58,173.57,66.18331556]
[1752765753509,8.34,173.58,173.57,9.28331556]
[1752765754021,7.66,173.58,173.57,9.28331556]
[1752765755731,7.66,173.58,173.57,15.04467985]
[1752765755927,0.03,173.59,173.57,24.32799541]
[1752765756121,0.03,173.59,173.58,30.9]
[1752765756436,0.03,173.59,173.58,49.46663112]
[1752765756828,0.03,173.59,173.58,66.53470133]
[1752765757809,0.03,173.59,173.58,72.2957337]
[1752765760219,0.03,173.59,173.58,73.7989337]
[1752765761440,0.03,173.59,173.58,80.07342472]
[1752765762215,0.03,173.66,173.62,42.78468397]
[1752765762216,7.66,173.65,173.62,42.78468397]
[1752765762463,7.69,173.66,173.64,9.28331556]
[1752765762646,0.03,173.66,173.65,40.16331556]
[1752765762830,0.03,173.66,173.65,56.94799953]
[1752765763227,1e-08,173.66,173.65,72.50580611]
[1752765763547,1e-08,173.66,173.65,97.63390611]
[1752765763757,1e-08,173.66,173.65,72.79542182]
[1752765764063,1e-08,173.66,173.65,70.80610626]
[1752765764353,1e-08,173.66,173.65,62.96951524]
[1752765765547,1e-08,173.66,173.65,62.68670957]
[1752765766840,1e-08,173.66,173.65,40.14331556]
[1752765767046,7.66000001,173.66,173.65,40.14331556]
[1752765768441,1e-08,173.66,173.65,62.68670957]
[1752765769751,1e-08,173.66,173.65,40.14331556]
[1752765769970,7.66000001,173.66,173.65,40.14331556]
[1752765770960,7.66000001,173.66,173.65,30.86]
[1752765771159,7.66000001,173.66,173.65,40.14331556]
[1752765771662,8.37000001,173.66,173.61,0.28288711]
[1752765771848,7.66,173.64,173.63,26.0]
[1752765772160,7.66,173.64,173.63,66.12331556]
[1752765773367,8.37,173.64,173.63,40.12331556]
[1752765774060,8.37,173.64,173.63,9.28331556]
[1752765774271,7.66,173.63,173.62,56.82]
[1752765774445,8.37,173.63,173.62,66.10331556]
[1752765774847,8.37,173.63,173.62,40.10331556]
[1752765775058,8.37,173.63,173.62,66.10331556]
[1752765775574,8.37,173.63,173.62,26.0]
[1752765775877,7.66,173.56,173.53,16.78468397]
[1752765776179,7.66,173.56,173.55,9.28331556]
[1752765776937,7.66,173.59,173.58,26.0]
[1752765777140,7.66,173.59,173.58,66.10331556]
[1752765777741,8.37,173.59,173.58,66.10331556]
[1752765778548,7.66,173.59,173.58,66.10331556]
[1752765779470,7.66,173.59,173.58,75.38663112]
[1752765779966,7.66,173.59,173.58,66.10331556]
[1752765780355,7.66,173.6,173.58,71.86434793]
[1752765780547,7.66,173.62,173.61,26.0]
[1752765780756,7.66,173.62,173.61,66.10331556]
[1752765780956,7.66,173.62,173.61,56.82]
[1752765781150,7.66,173.62,173.61,66.10331556]
[1752765781354,7.66,173.63,173.61,66.10331556]
[1752765781557,7.66,173.63,173.62,9.28331556]
[1752765782265,0.71000001,173.66,173.64,26.0]
[1752765782266,7.66,173.65,173.64,26.0]
[1752765782566,1e-08,173.66,173.65,16.78468397]
[1752765782762,1e-08,173.66,173.65,26.3508052]
[1752765782946,7.66,173.69,173.68,9.28331556]
[1752765783144,8.37,173.69,173.68,40.08331556]
[1752765783558,7.66,173.69,173.68,40.08331556]
[1752765783860,7.66,173.7,173.68,40.08331556]
[1752765784169,7.66,173.7,173.69,18.56663112]
[1752765784667,7.69,173.72,173.71,26.0]
[1752765784857,0.03,173.72,173.71,66.08331556]
[1752765785166,7.69,173.72,173.71,66.08331556]
[1752765786247,0.03,173.72,173.71,88.90702891]
[1752765787883,0.03,173.72,173.71,95.18151993]
[1752765789564,0.03,173.73,173.72,16.78468397]
[1752765789868,0.03,173.73,173.72,26.06799953]
[1752765790554,0.03,173.73,173.72,31.82438912]
[1752765790858,1e-08,173.73,173.72,42.72070468]
[1752765791061,1e-08,173.73,173.72,45.06070468]
[1752765791272,1e-08,173.73,173.72,48.9951957]
[1752765791461,1e-08,173.74,173.73,41.62580611]
[1752765791778,1e-08,173.74,173.73,32.62463329]
[1752765791963,1e-08,173.74,173.73,63.40463329]
[1752765792857,1e-08,173.74,173.73,69.2825886]
[1752765795758,1e-08,173.74,173.73,86.5525886]
[1752765797095,1e-08,173.74,173.73,77.26927304]
[1752765797276,1e-08,173.74,173.73,69.2625886]
[1752765797784,1e-08,173.74,173.73,86.5325886]
[1752765799091,1e-08,173.74,173.73,69.2425886]
[1752765799478,1e-08,173.74,173.73,95.79590416]
[1752765799900,1e-08,173.74,173.73,95.79387695]
[1752765800270,1e-08,173.76,173.75,16.78468397]
[1752765800513,0.1,173.78,173.77,16.78468397]
[1752765800812,0.1,173.78,173.77,66.37312659]
[1752765801003,0.1,173.78,173.77,72.23750123]
[1752765801472,0.1,173.78,173.77,62.95418567]
[1752765801674,0.1,173.78,173.77,72.23750123]
[1752765801972,0.1,173.78,173.77,78.51199225]
[1752765802797,0.1,173.78,173.77,81.41462851]
[1752765803695,1e-08,173.78,173.77,92.41013749]
[1752765803911,0.03,173.8,173.79,16.78468397]
[1752765804074,0.03,173.8,173.79,66.35296103]
[1752765804274,0.03,173.8,173.79,66.4797745]
[1752765804502,0.74,173.8,173.79,66.4797745]
[1752765804806,0.74,173.8,173.79,40.13012903]
[1752765804985,0.03,173.8,173.79,66.19812856]
[1752765805180,0.03,173.8,173.79,66.4798069]
[1752765805380,0.03,173.8,173.79,78.50836892]
[1752765805680,0.1,173.84,173.83,42.78468397]
[1752765805894,0.1,173.84,173.83,83.06931446]
[1752765806094,0.1,173.84,173.83,83.19609874]
[1752765806481,0.1,173.84,173.83,89.47058976]
[1752765806899,0.71,173.88,173.83,89.47058976]
[1752765807206,0.71,173.88,173.87,9.28331556]
[1752765807400,0.71,173.88,173.87,45.73473903]
[1752765807401,8.37,173.88,173.87,45.73473903]
[1752765807605,0.71,173.88,173.87,39.98331556]
[1752765807811,0.71,173.88,173.87,45.76561133]
[1752765807980,0.71,173.88,173.87,45.73473903]
[1752765808800,7.66,173.89,173.87,45.73473903]
[1752765808994,7.76,173.9,173.88,9.28331556]
[1752765809292,0.1,173.9,173.89,71.80207706]
[1752765809607,7.76,173.9,173.89,71.80207706]
[1752765809802,8.47,173.9,173.89,71.80207706]
[1752765810105,8.47,173.9,173.86,26.28086812]
[1752765810303,7.76,173.9,173.89,35.28331556]
[1752765810606,7.76,173.9,173.89,65.98331556]
[1752765810790,8.47,173.9,173.89,65.98331556]
[1752765810992,8.47,173.9,173.89,66.01446817]
[1752765812406,8.47,173.9,173.89,65.98331556]
[1752765812782,8.47,173.9,173.89,66.01441374]
[1752765812982,8.47,173.9,173.89,65.99441374]
[1752765813591,14.22043128,173.9,173.89,0.03109818]
[1752765814005,7.66,173.86,173.85,9.28331556]
[1752765814212,7.66,173.82,173.77,17.06569659]
[1752765814407,7.66,173.82,173.81,9.28331556]
[1752765814592,7.66,173.82,173.81,39.96331556]
[1752765814911,8.37,173.82,173.81,30.68]
[1752765815115,8.37,173.82,173.81,39.96331556]
[1752765815411,8.37,173.82,173.81,47.34948262]
[1752765815803,7.66,173.82,173.81,47.34948262]
[1752765816112,8.37,173.82,173.81,39.96331556]
[1752765816998,14.6281,173.82,173.81,9.28331556]
[1752765818114,7.66,173.77,173.73,0.03]
[1752765818303,7.66,173.77,173.74,30.68]
[1752765818499,8.37,173.77,173.74,33.51169632]
[1752765818696,8.37,173.77,173.76,26.0]
[1752765818892,8.37,173.77,173.76,56.66]
[1752765819092,8.37,173.77,173.76,30.66]
[1752765819314,8.37,173.77,173.76,39.94331556]
[1752765820913,8.37,173.77,173.76,30.66]
[1752765821117,8.36,173.77,173.76,39.94331556]
[1752765821702,7.66,173.77,173.76,39.94331556]
[1752765822296,8.36,173.77,173.76,39.94331556]
[1752765822622,7.66,173.77,173.76,39.94331556]
[1752765823521,7.66,173.78,173.76,46.38838001]
[1752765823817,7.66,173.78,173.77,9.28331556]
[1752765825319,7.66,173.76,173.75,7.20178815]
[1752765825522,8.36,173.76,173.75,39.94331556]
[1752765825705,7.66,173.76,173.75,39.94331556]
[1752765826408,7.66,173.76,173.75,45.69871124]
[1752765826597,7.66,173.77,173.75,46.38871124]
[1752765826798,7.66,173.79,173.78,26.0]
[1752765826994,7.66,173.8,173.78,66.63331556]
[1752765827199,7.66,173.8,173.79,9.28331556]
[1752765827724,6.2581,173.82,173.79,9.28331556]
[1752765827725,7.66,173.81,173.79,24.32053929]
[1752765827924,7.66,173.81,173.8,49.22663112]
[1752765828304,7.66,173.82,173.8,49.22663112]
[1752765828616,7.66,173.82,173.81,9.28331556]
[1752765830429,7.66,173.82,173.81,15.03672445]
[1752765830616,7.66,173.82,173.81,9.28331556]
[1752765831033,7.66,173.83,173.81,9.28331556]
[1752765831231,7.66,173.83,173.82,39.92331556]
[1752765831821,8.36,173.83,173.82,39.92331556]
[1752765832327,7.66,173.83,173.82,39.92331556]
[1752765832723,7.66,173.83,173.82,40.61331556]
[1752765832912,7.66,173.85,173.84,26.0]
[1752765833114,7.66,173.85,173.84,65.92331556]
[1752765833519,8.36,173.85,173.84,65.92331556]
[1752765833714,7.66,173.85,173.84,71.67573157]
[1752765834022,7.66,173.87,173.84,72.36573157]
[1752765834228,7.66,173.89,173.88,26.0]
[1752765834529,7.66,173.89,173.88,65.92331556]
[1752765834719,8.36,173.89,173.88,65.92331556]
[1752765835333,7.66,173.89,173.88,65.92331556]
[1752765837017,8.36,173.89,173.88,65.92331556]
[1752765837219,7.66,173.89,173.88,65.92331556]
[1752765837419,7.66,173.89,173.88,71.67440826]
[1752765837622,7.76,173.9,173.88,72.36440826]
[1752765837826,7.76,173.9,173.89,9.28331556]
[1752765838123,7.76,173.9,173.89,15.03407753]
[1752765840940,7.76,173.9,173.88,36.39102482]
[1752765841116,7.76,173.9,173.89,9.28331556]
[1752765841438,7.76,173.9,173.89,26.0]
[1752765841751,7.66,173.88,173.87,30.6]
[1752765842055,14.9071,173.88,173.87,9.28331556]
[1752765842266,14.9071,173.88,173.87,35.28331556]
[1752765842562,7.66,173.86,173.8,5.75373993]
[1752765842849,7.66,173.86,173.85,9.28331556]
[1752765843321,8.36,173.86,173.85,9.28331556]
[1752765843731,7.66,173.86,173.85,9.28331556]
[1752765844253,7.66,173.86,173.85,39.88331556]
[1752765844452,7.66,173.86,173.85,45.63540069]
[1752765844617,7.66,173.87,173.85,45.63540069]
[1752765844820,7.66,173.87,173.86,9.28331556]
[1752765845119,8.36,173.87,173.86,9.28331556]
[1752765845322,7.66,173.87,173.86,9.28331556]
[1752765845742,7.66,173.86,173.85,30.6]
[1752765845918,8.36,173.86,173.85,39.88331556]
[1752765846327,7.66,173.86,173.85,39.88331556]
[1752765846536,8.36,173.86,173.85,39.88331556]
[1752765847558,8.36,173.86,173.85,65.88331556]
[1752765847738,8.36,173.86,173.85,35.28331556]
[1752765851436,8.36,173.86,173.8,9.28331556]
[1752765851639,14.6717,173.85,173.83,9.28331556]
[1752765851840,1.409052,173.84,173.83,9.28331556]
[1752765852257,8.35,173.84,173.83,9.28331556]
[1752765852846,7.66,173.84,173.83,40.52331556]
[1752765853036,7.66,173.87,173.86,26.0]
[1752765853237,7.66,173.87,173.86,66.52331556]
[1752765853469,7.66,173.87,173.86,65.86331556]
[1752765853671,7.66,173.87,173.86,72.27506984]
[1752765853961,7.66,173.88,173.86,72.27506984]
[1752765854163,7.66,173.88,173.87,9.28331556]
[1752765854336,0.1,173.9,173.89,26.0]
[1752765854337,7.76,173.9,173.89,26.0]
[1752765854540,7.76,173.9,173.89,92.59131509]
[1752765855751,7.76,173.9,173.89,98.34207706]
[1752765857186,0.1,173.9,173.89,98.34207706]
[1752765857371,0.03,173.92,173.9,16.78468397]
[1752765857560,0.03,173.92,173.91,66.19200172]
[1752765857884,0.03,173.92,173.91,72.60210234]
[1752765859572,0.03,173.92,173.91,42.04210234]
[1752765859950,7.69,173.92,173.91,30.56]
[1752765860274,8.38,173.92,173.91,49.12663112]
[1752765860582,7.69,173.92,173.91,39.84331556]
[1752765861086,0.03,173.92,173.91,66.85200172]
[1752765861250,7.66,173.97,173.94,26.0]
[1752765861451,7.66,174.01,174.0,26.0]
[1752765861761,7.66,174.02,174.0,65.84331556]
[1752765861961,7.66,174.02,174.01,9.28331556]
[1752765862272,0.1,174.03,174.01,36.01131509]
[1752765862455,0.1,174.03,174.02,49.78663112]
[1752765863251,7.76,174.03,174.02,49.12663112]
[1752765864276,0.1,174.03,174.02,49.12663112]
[1752765864481,7.76,174.03,174.02,49.12663112]
[1752765864797,8.45,174.03,174.02,39.84331556]
[1752765865378,0.1,174.03,174.02,71.65778101]
[1752765865583,0.1,174.03,174.02,72.31778101]
[1752765867762,0.1,174.03,174.02,78.59227203]
[1752765869466,0.1,174.03,174.02,78.57227203]
[1752765870663,0.1,174.03,174.02,95.84227203]
[1752765870863,0.1,174.03,174.02,78.57227203]
[1752765871291,0.1,174.06,174.05,26.0]
[1752765871587,0.1,174.06,174.05,89.14198765]
[1752765871795,8.35,174.14,174.09,26.0]
[1752765871965,7.66,174.1,174.09,42.78468397]
[1752765872171,7.66,174.13,174.12,26.0]
[1752765872392,15.8187,174.15,174.12,75.08663112]
[1752765872575,7.66,174.17,174.16,26.0]
[1752765872778,7.66,174.17,174.16,65.80331556]
[1752765872984,8.35,174.17,174.16,65.80331556]
[1752765874188,7.66,174.15,174.13,26.0]
[1752765874378,7.66,174.16,174.14,39.80331556]
[1752765874694,7.66,174.16,174.15,9.28331556]
[1752765875193,7.66,174.14,174.13,26.0]
[1752765875502,8.35,174.14,174.13,56.52]
[1752765875790,8.35,174.14,174.13,65.80331556]
[1752765875980,7.66,174.14,174.13,65.80331556]
[1752765876378,7.66,174.14,174.13,91.87131509]
[1752765876590,7.66,174.16,174.13,97.6141509]
[1752765876787,8.35,174.16,174.15,9.28331556]
[1752765876992,8.35,174.16,174.15,39.80331556]
[1752765877181,8.35,174.16,174.15,9.28331556]
[1752765877382,7.66,174.14,174.06,6.27449102]
[1752765877584,7.66,174.09,174.07,47.28468397]
[1752765877788,7.66,174.1,174.09,26.0]
[1752765878090,7.66,174.11,174.09,57.4392003]
[1752765878268,1.40768961,174.17,174.09,57.4392003]
[1752765878269,7.66,174.1,174.09,73.94468397]
[1752765878473,7.66,174.1,174.09,73.28468397]
[1752765878773,7.66,174.11,174.1,16.78468397]
[1752765878991,7.66,174.11,174.1,26.06799953]
[1752765879379,8.35,174.11,174.1,9.28331556]
[1752765879795,7.66,174.11,174.1,9.28331556]
[1752765880179,8.35,174.11,174.1,9.28331556]
[1752765880597,8.35,174.11,174.1,35.28331556]
[1752765880798,8.35,174.11,174.1,9.28331556]
[1752765881007,7.66,174.09,174.07,9.28331556]
[1752765881178,6.43349549,174.11,174.07,9.28331556]
[1752765881179,9.03806066,174.08,174.07,9.28331556]
[1752765881496,9.03806066,174.08,174.07,35.28331556]
[1752765881700,8.32,174.08,174.07,26.0]
[1752765882001,8.32,174.08,173.99,0.69]
[1752765882002,7.66,174.0,173.96,6.43834323]
[1752765882175,7.66,174.0,173.99,9.28331556]
[1752765882378,7.66,174.0,173.99,39.78331556]
[1752765883101,8.32,174.0,173.99,39.78331556]
[1752765883281,7.66,174.0,173.99,39.78331556]
[1752765883482,7.66,174.0,173.99,57.25799953]
[1752765884196,7.66,174.0,173.99,56.56799953]
[1752765884375,7.66,174.01,173.99,57.25799953]
[1752765884571,7.66,174.01,174.0,9.28331556]
[1752765884804,7.66,174.01,174.0,26.06799953]
[1752765885980,7.66,174.01,174.0,9.28331556]
[1752765886403,7.66,174.01,174.0,26.06799953]
[1752765886803,7.66,174.02,174.0,17.47468397]
[1752765887012,7.66,174.02,174.01,39.78331556]
[1752765887307,7.66,174.02,174.01,57.25799953]
[1752765887480,7.66,174.03,174.01,57.25799953]
[1752765887679,7.66,174.03,174.02,9.28331556]
[1752765887897,7.66,174.03,174.02,36.04131509]
[1752765888097,7.66,174.03,174.02,26.06799953]
[1752765888383,7.66,174.03,174.02,9.28331556]
[1752765888790,8.32,174.03,174.02,9.28331556]
[1752765889311,8.32,174.03,174.02,39.78331556]
[1752765889497,8.32,174.03,174.02,9.28331556]
[1752765890199,7.66,174.03,174.02,9.28331556]
[1752765890912,7.66,174.03,173.98,24.30824766]
[1752765890913,7.66,174.0,173.98,9.28331556]
[1752765891117,7.66,173.96,173.91,2.99735069]
[1752765891414,7.54359822,173.91,173.89,16.78468397]
[1752765891709,7.54359822,173.92,173.91,16.78468397]
[1752765891913,7.54359822,173.93,173.91,31.81794679]
[1752765892083,7.54359822,173.93,173.92,47.28468397]
[1752765892794,7.54359822,173.93,173.92,47.97468397]
[1752765893001,7.54359822,173.93,173.92,47.28468397]
[1752765893401,7.54359822,173.93,173.92,47.97468397]
[1752765893604,7.54359822,173.93,173.92,57.25799953]
[1752765893887,7.54359822,173.93,173.92,30.5]
[1752765894087,7.54359822,173.93,173.92,39.78331556]
[1752765894397,7.54359822,173.93,173.92,45.53308556]
[1752765894997,7.54359822,173.93,173.92,39.78331556]
[1752765895405,8.20359822,173.93,173.92,39.78331556]
[1752765896985,7.54359822,173.93,173.92,39.78331556]
[1752765897991,7.54359822,173.93,173.92,62.31776953]
[1752765898191,7.54359822,173.94,173.93,16.78468397]
[1752765898395,7.54359822,173.94,173.93,26.75799953]
[1752765898609,7.54359822,173.95,173.93,32.50743895]
[1752765898801,7.54359822,173.95,173.94,83.25799953]
[1752765899110,7.54359822,173.96,173.94,83.25799953]
[1752765899319,7.54359822,173.97,173.95,26.75799953]
[1752765899519,7.54359822,173.97,173.96,40.47331556]
[1752765899819,7.54359822,173.98,173.97,16.78468397]
[1752765900022,7.54359822,173.98,173.97,56.56799953]
[1752765900693,7.54359822,173.97,173.94,26.0]
[1752765900913,7.54359822,173.97,173.93,6.43915225]
[1752765900914,8.20359822,173.97,173.96,9.28331556]
[1752765901688,7.54359822,173.96,173.95,30.5]
[1752765901896,8.20359822,173.96,173.95,39.78331556]
[1752765902107,7.54359822,173.95,173.94,9.28331556]
[1752765902313,8.20359822,173.95,173.93,56.5]
[1752765902621,7.54359822,173.94,173.93,56.5]
[1752765902804,7.54359822,173.93,173.89,6.72756651]
[1752765903008,7.54359822,173.92,173.9,30.5]
[1752765903207,7.54359822,173.91,173.9,30.5]
[1752765903515,8.20359822,173.92,173.9,30.5]
[1752765903717,8.20359822,173.92,173.91,9.28331556]
[1752765904098,7.54359822,173.92,173.91,9.28331556]
[1752765904795,7.54359822,173.91,173.9,30.5]
[1752765904998,8.20359822,173.91,173.9,30.5]
[1752765905206,8.20359822,173.91,173.9,9.28331556]
[1752765905404,8.20359822,173.91,173.89,9.28331556]
[1752765905621,7.54359822,173.88,173.87,0.2]
[1752765905796,7.54359822,173.88,173.87,39.98331556]
[1752765906516,8.20359822,173.88,173.87,9.48331556]
[1752765906723,7.54359822,173.88,173.87,9.48331556]
[1752765907022,8.20359822,173.88,173.87,9.48331556]
[1752765907405,8.20359822,173.88,173.87,0.2]
[1752765907605,8.20359822,173.88,173.87,9.48331556]
[1752765908011,8.20359822,173.88,173.87,0.2]
[1752765908400,8.20359822,173.88,173.87,35.48331556]
[1752765908720,8.20359822,173.88,173.87,0.2]
[1752765909022,8.20359822,173.88,173.87,26.2]
[1752765909717,24.81360648,173.88,173.87,0.2]
[1752765909899,30.89570648,173.88,173.87,0.2]
[1752765910094,25.86350036,173.88,173.87,0.2]
[1752765910322,16.5801848,173.88,173.87,0.2]
[1752765910503,25.86350036,173.88,173.87,0.2]
[1752765913012,16.5801848,173.88,173.87,0.2]
[1752765913204,15.86129822,173.88,173.87,0.2]
[1752765913909,7.54359822,173.86,173.85,0.03]
[1752765914110,17.54588306,173.86,173.85,0.03]
[1752765914304,8.9325675,173.86,173.85,0.03]
[1752765914921,7.54359822,173.86,173.85,0.03]
[1752765915314,8.21359822,173.86,173.85,0.03]
[1752765915712,7.54359822,173.86,173.85,9.31331556]
[1752765916127,7.54359822,173.86,173.85,9.98331556]
[1752765916534,7.54359822,173.86,173.85,15.73540069]
[1752765916847,7.54359822,173.86,173.85,9.98331556]
[1752765917052,7.54359822,173.86,173.85,15.73540069]
[1752765917413,46.48591556,173.93,173.85,15.73540069]
[1752765917414,7.54359822,173.87,173.85,32.52008466]
[1752765917613,7.54359822,173.88,173.86,40.45331556]
[1752765917915,7.54359822,173.89,173.87,9.95331556]
[1752765918122,7.54359822,173.9,173.88,40.45331556]
[1752765918314,7.54359822,173.9,173.89,40.45331556]
[1752765918535,7.54359822,173.9,173.89,46.20407753]
[1752765919820,7.54359822,173.92,173.91,26.0]
[1752765920026,7.54359822,173.92,173.91,66.45331556]
[1752765920540,7.54359822,173.92,173.91,65.78331556]
[1752765922034,7.54359822,173.92,173.91,35.28331556]
[1752765922234,7.54359822,173.92,173.91,83.21799953]
[1752765922560,7.54359822,173.96,173.91,98.25141571]
[1752765922845,7.54359822,173.96,173.95,35.28331556]
[1752765924833,7.54359822,173.96,173.95,41.70209394]
[1752765925442,7.54359822,173.97,173.95,41.70209394]
[1752765925627,7.54359822,173.97,173.96,39.76331556]
[1752765925817,7.54359822,173.97,173.96,9.28331556]
[1752765926524,7.54359822,173.97,173.96,9.95331556]
[1752765926730,7.54359822,173.99,173.98,26.0]
[1752765926923,7.54359822,173.99,173.98,35.28331556]
[1752765927126,7.54359822,173.99,173.98,35.95331556]
[1752765927831,7.54359822,173.99,173.98,35.28331556]
[1752765928639,7.54359822,173.99,173.93,17.06483948]
[1752765928852,7.54359822,173.95,173.94,30.48]
[1752765929142,7.54359822,173.95,173.94,39.76331556]
[1752765929729,7.54359822,173.95,173.94,39.93331556]
[1752765930026,7.54359822,173.95,173.94,40.60331556]
[1752765930229,7.54359822,173.95,173.94,57.38799953]
[1752765930813,7.54359822,173.95,173.94,63.13710841]
[1752765931250,7.54359822,173.96,173.95,16.78468397]
[1752765931546,7.54359822,173.96,173.95,9.28331556]
[1752765931734,8.21359822,173.96,173.95,39.74331556]
[1752765932038,7.54359822,173.96,173.95,9.28331556]
[1752765933621,8.21359822,173.96,173.95,9.28331556]
[1752765933827,7.54359822,173.95,173.94,26.0]
[1752765934031,8.93219551,173.95,173.94,26.0]
[1752765934236,7.54359822,173.93,173.92,9.28331556]
[1752765934549,8.21359822,173.93,173.92,9.28331556]
[1752765934732,8.21359822,173.93,173.92,35.28331556]
[1752765935172,7.54359822,173.93,173.92,9.28331556]
[1752765935344,7.54359822,173.93,173.92,35.28331556]
[1752765935723,7.54359822,173.93,173.92,26.0]
[1752765935952,7.54359822,173.93,173.92,35.28331556]
[1752765936245,7.54359822,173.93,173.91,0.06]
[1752765936246,7.54359822,173.92,173.91,9.34331556]
[1752765936449,8.21359822,173.92,173.91,9.34331556]
[1752765936823,7.54359822,173.92,173.91,10.01331556]
[1752765937030,7.54359822,173.92,173.91,9.34331556]
[1752765937651,8.21359822,173.92,173.91,0.06]
[1752765938149,7.54359822,173.92,173.91,35.34331556]
[1752765938742,7.54359822,173.92,173.91,0.06]
[1752765938949,7.54359822,173.92,173.91,26.79799953]
[1752765939152,7.54359822,173.92,173.91,41.83141571]
[1752765939733,7.54359822,173.92,173.91,72.29141571]
[1752765940556,7.54359822,173.92,173.91,63.00810015]
[1752765941445,7.54359822,173.92,173.91,57.25799953]
[1752765941638,7.54359822,173.92,173.91,56.58799953]
[1752765942154,7.54359822,173.93,173.91,72.28141571]
[1752765942357,7.54359822,173.93,173.92,26.72799953]
[1752765942674,7.54359822,173.94,173.92,26.72799953]
[1752765942862,7.54359822,173.94,173.93,57.18799953]
[1752765943155,7.54359822,173.94,173.93,62.93743895]
[1752765943937,7.54359822,173.95,173.93,62.93743895]
[1752765944139,7.54359822,173.95,173.94,9.94331556]
[1752765944447,7.54359822,173.95,173.94,17.44468397]
[1752765944654,7.54359822,173.95,173.94,26.72799953]
[1752765945265,7.54359822,173.95,173.94,32.47710841]
[1752765947352,7.54359822,173.95,173.94,26.72799953]
[1752765947552,7.54359822,173.95,173.94,26.06799953]
[1752765947749,7.54359822,173.95,173.94,26.72799953]
[1752765948344,7.54359822,173.95,173.94,32.64710841]
[1752765949144,8.21359822,173.95,173.94,0.17]
[1752765949448,8.21359822,173.95,173.94,9.45331556]
[1752765949640,8.21359822,173.95,173.94,35.45331556]
[1752765950548,8.21359822,173.95,173.94,9.45331556]
[1752765950963,8.21359822,173.95,173.94,35.28331556]
[1752765952043,8.21359822,173.95,173.94,26.0]
[1752765952247,13.9623766,173.95,173.94,26.0]
[1752765952454,13.9623766,173.95,173.91,0.06]
[1752765952761,7.54359822,173.88,173.87,9.31331556]
[1752765953281,8.21359822,173.88,173.87,9.31331556]
[1752765953770,7.54359822,173.88,173.87,9.31331556]
[1752765953949,7.54359822,173.88,173.87,35.31331556]
[1752765954155,7.54359822,173.88,173.87,9.31331556]
[1752765954672,8.21359822,173.88,173.87,35.31331556]
[1752765956161,7.54359822,173.88,173.87,35.31331556]
[1752765956367,7.54359822,173.88,173.87,66.43331556]
[1752765957153,7.54359822,173.88,173.87,65.77331556]
[1752765958247,8.21359822,173.88,173.87,35.31331556]
[1752765958768,7.54359822,173.88,173.87,35.31331556]
[1752765961376,7.54359822,173.88,173.87,35.97331556]
[1752765961675,7.54359822,173.88,173.87,46.18473903]
[1752765961872,0.71867992,173.93,173.87,62.969423]
[1752765962050,0.77855598,173.96,173.92,9.28331556]
[1752765962245,0.77855598,173.96,173.95,9.28331556]
[1752765962450,6.47844791,173.96,173.94,9.28331556]
[1752765962752,1.38859729,173.95,173.91,26.0]
[1752765962948,0.67,173.94,173.91,9.28331556]
[1752765963173,0.71867992,173.93,173.92,9.28331556]
[1752765963551,5.80844791,173.96,173.92,9.28331556]
[1752765963552,1.38859729,173.95,173.92,9.28331556]
[1752765963881,7.13756972,173.95,173.89,26.0]
[1752765964054,0.67,173.94,173.93,9.28331556]
[1752765964252,0.67,173.94,173.89,26.0]
[1752765964457,0.71867992,173.93,173.91,9.28331556]
[1752765964681,0.67,173.92,173.9,9.28331556]
[1752765964971,8.69146257,173.91,173.9,9.28331556]
[1752765965273,9.36146257,173.91,173.88,9.28331556]
[1752765965573,0.67,173.9,173.88,9.28331556]
[1752765965784,1.38884524,173.89,173.88,9.28331556]